Cogmind - Beta 14 @@@ ROGUE MODE // 2025.03.26 @ 16:07:51 // Winter2019/RPGLIKE Player: Lava Result: Destroyed by G-47 Trooper with Particle Gun Performance ------------- Evolutions (0) 0 Regions Visited (1) 200 Robots Destroyed (4) 20 Value Destroyed (118) 118 Prototype IDs (0) 0 Alien Tech Used (0) 0 Bonus (0) 0 TOTAL SCORE: 338 Bonus ------- None Cogmind --------- Core Integrity 0/600 Matter 210/300 Energy 100/100 System Corruption 0% Temperature Danger (438) Movement Treading (160) Location -10/Materials Parts ------- > --- POWER (1) -------- Light Ion Engine > --- PROPULSION (2) --- Light Treads Light Treads > --- UTILITY (2) ------ Hardened Light Armor Plating Hardened Light Armor Plating > --- WEAPON (2) ------- Assault Rifle Light Assault Rifle > --- INVENTORY (2) ---- Mini Grenade Launcher Peak State ------------ > --- POWER ------------ Light Ion Engine > --- PROPULSION ------- Light Treads Light Treads > --- UTILITY ---------- Hardened Light Armor Plating Hardened Light Armor Plating > --- WEAPON ----------- Small Laser Light Assault Rifle > --- INVENTORY -------- Mini Grenade Launcher [Rating: 9] Favorites ----------- Power Light Ion Engine Engine Light Ion Engine Propulsion Light Treads Treads Light Treads Utility Hardened Light Armor Plating Protection Hardened Light Armor Plating Weapon Light Assault Rifle Energy Gun Small Laser Ballistic Gun Light Assault Rifle Build | -11 -10 ------- Run | Yrd Mat Slots Evolved 3 | 3 . Power . | . . Propulsion 1 | 1 . Utility 1 | 1 . Weapon 1 | 1 . Parts Attached 8 | 5 3 Power 1 | 1 . Engine 1 | 1 . Core . | . . Reactor . | . . Propulsion 2 | 2 . Treads 2 | 2 . Leg . | . . Wheel . | . . Hover . | . . Flight . | . . Utility 2 | . 2 Device . | . . Storage . | . . Processor . | . . Hackware . | . . Protection 2 | . 2 Artifact . | . . Weapon 3 | 2 1 Energy Gun 1 | 1 . Energy Cannon . | . . Ballistic Gun 2 | 1 1 Ballistic Cannon . | . . Launcher . | . . Special Weapon . | . . Impact Weapon . | . . Slashing Weapon . | . . Piercing Weapon . | . . Special Melee Weapon . | . . Unidentified Prototypes . | . . Parts Lost . | . . Power . | . . Propulsion . | . . Utility . | . . Weapon . | . . Highest Loss Streak . | . . To Critical Strikes . | . . Average Slot Usage (%) 95 | . 95 Engine 14 | . 14 Treads 28 | . 28 Protection 23 | . 23 Energy Gun 11 | . 11 Ballistic Gun 16 | . 16 Peak Build Rating 9 | 5 9 Average Rating 7 | 3 8 On Entrance 2 | . 5 Naked Turns . | . . Heaviest Build 16 | 5 16 Greatest Support 40 | 40 40 Greatest Overweight (x) . | . . Average Overweight (x) . | . . Largest Inventory Capacity 2 | 2 2 Average Capacity 2 | 2 2 Most Carried 2 | 2 2 Average Carried . | . . Final Capacity 2 | 2 2 Final Carried 1 | . 1 Class Distribution -------------------- 100% | Mutant Dominant Class ---------------- Mutant | -10/Materials Resources | -11 -10 ----------- Run | Yrd Mat Matter Collected 294 | 189 105 Remotely . | . . Salvage Created 183 | . 183 Parts 9 | . 9 Haulers Intercepted . | . . Recyclers Shooed . | . . Parts Field Recycled . | . . Retrieved Matter . | . . Parts Self-Destructed . | . . Prevented . | . . Kills | -11 -10 ------- Run | Yrd Mat Combat Hostiles Destroyed 3 | . 3 Guns 3 | . 3 Classes Destroyed 2 | . 2 Watcher 1 | . 1 Grunt 3 | . 3 Best Kill Streak 1 | . 1 Combat Bots Only 1 | . 1 Max Kills in Single Turn 1 | . 1 Gunslinging . | . . Exploded . | . . Melee . | . . Uniques/NPCs Destroyed . | . . Combat | -11 -10 -------- Run | Yrd Mat Hostile Shots Fired 86 | . 86 Missed 8 | . 8 Damage Taken 974 | . 974 Core 603 | . 603 Absorbed by Shields . | . . Redirected to Core 525 | . 525 Core Remaining (%) 100 | 100 . Volleys Fired 44 | . 44 Largest 2 | . 2 Hottest 60 | . 60 Shots Fired 83 | . 83 Gun 83 | . 83 Cannon . | . . Launcher . | . . Special . | . . Kinetic 64 | . 64 Thermal 19 | . 19 Explosive . | . . Electromagnetic . | . . Robot Hit Streak 11 | . 11 Robot Miss Streak 4 | . 4 Penetration Max . | . . Secondary Targets . | . . Shots Hit Robots 50 | . 50 Core Hits 13 | . 13 Critical Kills . | . . Critical Parts Destroyed . | . . Critical Strikes . | . . Melee Attacks . | . . Impact . | . . Slashing . | . . Piercing . | . . Sneak Attacks . | . . Combat Hostiles . | . . Follow-up Attacks . | . . Damage Inflicted 534 | . 534 Guns 534 | . 534 Cannons . | . . Explosions . | . . Melee . | . . Ramming . | . . Kinetic 388 | . 388 Thermal 146 | . 146 Explosive . | . . Electromagnetic . | . . Impact . | . . Slashing . | . . Piercing . | . . Highest Corruption . | . . Average Corruption . | . . Corruption Purged . | . . Corruption Blocked . | . . Overload Shots . | . . Overflow Damage . | . . Projectiles . | . . Explosions . | . . Melee . | . . Knockbacks . | . . Impact . | . . Kinetic . | . . Secondary . | . . Self-Inflicted Damage . | . . Shots . | . . Rammed . | . . Targets Rammed . | . . Kicked . | . . Crushed . | . . Highest Temperature 429 | . 429 Average Temperature 171 | . 171 Received Heat Transfer 561 | . 561 Effects 4 | . 4 Interference 1 | . 1 Short Circuit 2 | . 2 Damage (minor) 1 | . 1 Siege Activations . | . . Robots Corrupted . | . . Combat Hostiles . | . . Parts Fried . | . . Impact Corruptions . | . . Robots Melted . | . . Combat Hostiles . | . . Parts Melted 1 | . 1 Heat Transferred 325 | . 325 Parts Sabotaged . | . . Parts Stolen . | . . Parts Stripped . | . . Power Chain Reactions . | . . Alert | -11 -10 ------- Run | Yrd Mat Peak Influence 137 | . 137 Initial . | . . Average 39 | . 47 Maximum Alert Level . | . . Low Security (%) 100 | 100 100 Level 1 . | . . Level 2 . | . . Level 3 . | . . Level 4 . | . . Level 5 . | . . High Security . | . . Max Security . | . . Squads Dispatched 1 | . 1 Investigation . | . . Extermination . | . . Reinforcement 1 | . 1 Assault . | . . Garrison . | . . Intercept . | . . Searches Triggered . | . . Construction Impeded . | . . Haulers Reinforced . | . . Active Scanning Responses . | . . Cargo Convoy Interrupts . | . . Stealth | -11 -10 --------- Run | Yrd Mat Distress Signals 1 | . 1 Communications Jammed . | . . Distress Signals . | . . Times Spotted 12 | . 12 Peak Tracking Total 5 | . 5 Tactical Retreats 2 | . 2 Traps | -11 -10 ------- Run | Yrd Mat Traps Triggered . | . . Indirectly . | . . Trap Hack Attempts . | . . Triggered . | . . Disarmed 6 | . 6 Reprogrammed . | . . Reused . | . . Traps Extracted . | . . Installed . | . . Triggered . | . . Machines | -11 -10 ---------- Run | Yrd Mat Machines Disabled . | . . Max in Single Turn . | . . Machines Repaired . | . . Machines Dismantled . | . . Machines Sabotaged . | . . Overloaded Fab Kills . | . . Hacking | -11 -10 --------- Run | Yrd Mat Machines Accessed 1 | . 1 Terminals 1 | . 1 Fabricators . | . . Repair Stations . | . . Recycling Units . | . . Scanalyzers . | . . Garrison Access . | . . Total Hacks 3 | . 3 Successful 1 | . 1 Failed 2 | . 2 Catastrophic . | . . Database Lockouts . | . . Manual 3 | . 3 Terminals 3 | . 3 Fabricators . | . . Repair Stations . | . . Recycling Units . | . . Scanalyzers . | . . Garrison Access . | . . Terminal Hacks 1 | . 1 Disarm Traps 1 | . 1 Fabricator Hacks . | . . Repair Station Hacks . | . . Recycling Unit Hacks . | . . Scanalyzer . | . . Garrison Access Hacks . | . . Unauthorized Hacks . | . . Terminals . | . . Fabricators . | . . Repair Stations . | . . Recycling Units . | . . Scanalyzers . | . . Garrison Access . | . . Data Cores Recovered . | . . Used . | . . Hacking Detections 1 | . 1 Full Trace Events . | . . Feedback Events . | . . Feedback Blocked . | . . Robot Schematics Acquired . | . . Robots Built . | . . Authchips . | . . Time . | . . Total Robot Build Rating . | . . Part Schematics Acquired . | . . Parts Built . | . . Authchips . | . . Time . | . . Total Part Build Rating . | . . Parts Repaired . | . . Time . | . . Parts Recycled . | . . Recycled Matter . | . . Retrieved Matter . | . . Retrieved Components . | . . Parts Scanalyzed . | . . Part Schematics Acquired . | . . Parts Damaged . | . . Bothacking | -11 -10 ------------ Run | Yrd Mat Used RIF Installer . | . . Robots Hacked . | . . Non-combat . | . . Combat . | . . Robot Hacks Applied . | . . Relay Couplers Released . | . . Fabnet Peak Effective % . | . . Robots Rewired . | . . Allies Hacked . | . . Hacks Repelled . | . . Allies | -11 -10 -------- Run | Yrd Mat Total Allies . | . . Largest Group . | . . Highest-Rated Group . | . . Highest-Rated Ally . | . . Total Orders . | . . Ally Attacks . | . . Total Damage . | . . Kills . | . . Allies Corrupted . | . . Allies Melted . | . . Intel | -11 -10 ------- Run | Yrd Mat Robot Analysis Total . | . . Derelict Logs Recovered . | . . Drone Launches . | . . Drone Recoveries . | . . Exploration | -11 -10 ------------- Run | Yrd Mat Turns Passed 388 | 66 322 Spaces Moved 162 | 47 115 Core 15 | 15 . Treads 147 | 32 115 Legs . | . . Wheels . | . . Hover . | . . Flight . | . . Fastest Speed 50 | 50 160 Average Speed 149 | 124 160 Slowest Speed 160 | 160 160 Overloaded Moves . | . . Propulsion Burnouts . | . . Robots Hopped . | . . Cave-ins Triggered . | . . Exploration Rate (%) 16 | 3 29 Regions Visited 1 Branch Regions . Pre-discovered Areas . | . . Known Exits Taken . | . . Unknown Exits Taken 1 | 1 . Scrap Searched . | . . Spaces Dug . | . . Terrain Destroyed . | . . Melee . | . . Projectile . | . . AOE . | . . Terrain Rammed . | . . Walls Destroyed . | . . Machines Disabled . | . . Actions | -11 -10 --------- Run | Yrd Mat Total 234 | 53 181 Wait 14 | . 14 Move 161 | 46 115 Hop . | . . Pick Up 6 | 2 4 Fast Attach 3 | 3 . Attach 5 | 2 3 Detach . | . . Swap . | . . Drop 1 | . 1 Fire 44 | . 44 Melee . | . . Ram . | . . Kick . | . . Crush . | . . Escape Stasis . | . . Rewire . | . . Trap . | . . Miscellaneous . | . . Route ------- -11/Scrapyard -10/Materials (discovered 1 exit: [*Mat]) History --------- Turn | Location | Event 1 | -11/Scrapyard | Upgraded with Propulsion slot (x1) 1 | -11/Scrapyard | Upgraded with Utility slot (x1) 1 | -11/Scrapyard | Upgraded with Weapon slot (x1) 4 | -11/Scrapyard | Discovered new exit (range 16) 67 | -11/Scrapyard | Entered Materials 297 | -10/Materials | Discovered new exit (range 8) 311 | -10/Materials | Build established: Mutant 348 | -10/Materials | Core integrity fell below 50% 376 | -10/Materials | Core integrity fell below 20% 389 | -10/Materials | Destroyed by G-47 Trooper with Particle Gun Last Messages --------------- 00282_ G-34 Mercenary destroyed. 00293_ Acquired 11 matter. 00297_ EXIT=FOUND 00299_ Overheating: System interference. 00299_ Lgt. Assault Rifle temporarily disabled. 00308_ M-13 Machinist repairs G-47 Trooper. 00308_ R-06 Scavenger collects Aluminum Leg. 00325_ Dropped Sml. Laser. 00325_ Acquired Assault Rifle. 00346_ R-06 Scavenger collects Sml. Laser. 00349_ M-13 Machinist repairs G-34 Mercenary. 00351_ W-16 Scout sends out distress signal. 00360_ Critical hit (Burn: +37). 00365_ Lgt. Ion Engine broken. 00365_ Overheating: Short circuit. 00366_ M-13 Machinist repairs G-34 Mercenary. 00372_ Lgt. Treads broken. 00372_ Overheating: Short circuit. 00378_ Overheating: Hrd. Light Armor Plating damaged (-24). 00388_ G-34 Mercenary destroyed. Map ----- +----------------------------------------------------+ | | | | | | | | | | | | | | | | | | | ?????????????????????????????????????????????????? | | ?????????????????????????????????????????????????? | | ?????????????????????????????????????????????????? | | ?????????????????""??????????????????????????????? | | ?????????????????""??????????????????????????????? | | ????????????????? ??????????????????????????????? | | ????????????????? ??????????????????????????????? | | ??????????????###+###????????????????????????????? | | ???????######## ##########+#?????????????????? | | ???????# ^ ?????????????????? | | ???????# < ^ T ?????????????????? | | ???????# ?????????????????? | | ????????####### #####????????????????????????? | | ??????????????## ###########???????????????????? | | ?????########### # ==== #???????????????????? | | ?????# #% # !%== #???????????????????? | | ?????# %+% + g *=@ #???????????????????? | | ?????# # # #???????????????????? | | ?????# # ####w######???????????????????? | | ########+####### ##?# ?????????????????????????? | | # ###### #?#??????????????????????????? | | # #????????????????????????????? | | + #????????????????????????????? | | [ # ] #????????????????????????????? | | ### #### #????????????????????????????? | | // #?# #??#######????????????????????????????? | | /! ###+###???????????????????????????????????? | | # % #???????????????????????????????????? | | # """ #???????????????????????????????????? | | ######## "Y" #???????????????????????????????????? | | ???????# #???????????????????????????????????? | | ???????# #???????????????????????????????????? | | ???????# #???????????????????????????????????? | | ???????# ] #???????????????????????????????????? | | ###??###/#########+#?????????????????????????????? | | ! #??# ??????????????????????????? | | ! #### ??????????????????????????? | | ] ??????????????????????????? | | ???????????????????????????? | | " #########???????????????????????????? | | ! T #???????????????????????????????????? | +----------------------------------------------------+ Best States ------------- Heat Dissipation 25 Energy Generation 10 Energy Capacity 125 Matter Stores 300 Matter Capacity 300 Sight Range 16 Robot Scan Range 12 Terrain Scan Density 10 Armor Coverage 300 Evasion (%) 50 Recoil Reduction 2 Item Schematics ----------------- None Robot Schematics ------------------ None Fabricated ------------ Nothing Alien Tech Used ----------------- None Achievements -------------- None Challenges ------------ None RPGLIKE | -11 -10 --------- Run | Yrd Mat Levels Raised . | . . XP Earned 3385 | 3000 385 XP Spent 2925 | 2925 . Upgrades 11 | 11 . Propulsion Slot 1 | 1 . Utility Slot 1 | 1 . Weapon Slot 1 | 1 . Inventory Capacity 2 | 2 . Sensor Range 6 | 6 . Protomatter Created . | . . Protomatter Decayed . | . . Game ------ Seed OpticalUltimateScreen Manual? 0 Play Time 00:06:34 Cumulative 36.1 hours Start 2025.03.26 @ 16:04:07 End 2025.03.26 @ 16:07:51 Sessions 1 Manual Loads 0 Difficulty Rogue Special Mode Winter2019/RPGLIKE Game No. 66 Rogue 66 Adventurer 0 Explorer 0 Win Type - Total 0 Types 0/0/0/0/0/0/0/0/0 Lore% 13 Gallery% 26 Achievement% 29 Wizard Run 0 Options --------- Layout 0 ASCII 0 Keyboard 0 Movement Mouse Keybinds 0 Fullscreen 1 Font 24/Smallcaps Map View 76x56 Zoom Use 0% Tactical HUD 1 Map Filters NONE Filters NONE Steam 1 RUN: a29dc81e-b8da-42a4-862a-f0e3d120e7ad